bitfinex/quotes_BTCUSD_20240927
["timestamp","ask_amount","ask_price","bid_price","bid_amount"]
[1727449216512,0.152308,66379.0,66378.0,0.004]
[1727449216730,0.16907612,66379.0,66378.0,0.004]
[1727449216965,0.19590849,66379.0,66378.0,0.004]
[1727449217187,0.24098318,66379.0,66378.0,0.004]
[1727449217423,0.64466963,66379.0,66378.0,0.004]
[1727449217657,0.15067,66370.0,66369.0,0.000829]
[1727449217873,0.26189447,66370.0,66369.0,0.000829]
[1727449218080,0.19427049,66370.0,66369.0,0.000829]
[1727449218750,0.44059645,66370.0,66369.0,0.000829]
[1727449218972,0.44959645,66370.0,66369.0,0.001829]
[1727449219189,0.69058439,66370.0,66369.0,0.001829]
[1727449219407,0.68158439,66370.0,66369.0,0.000829]
[1727449219633,0.68158439,66370.0,66353.0,0.000829]
[1727449219634,0.150706,66354.0,66353.0,0.000829]
[1727449219855,0.79309408,66354.0,66353.0,0.000829]
[1727449220089,0.68037211,66354.0,66353.0,0.000829]
[1727449220330,0.52508417,66354.0,66353.0,0.000829]
[1727449220548,0.81049054,66354.0,66353.0,0.000829]
[1727449220776,0.78791039,66354.0,66353.0,0.000829]
[1727449221221,0.44769509,66354.0,66353.0,0.000829]
[1727449221515,0.78588476,66354.0,66353.0,0.000829]
[1727449221730,0.3670484,66354.0,66353.0,0.000829]
[1727449221955,0.25240985,66354.0,66353.0,0.000829]
[1727449222186,0.02978992,66354.0,66353.0,0.000829]
[1727449222413,0.02978992,66354.0,66353.0,0.151538]
[1727449222414,0.01678992,66354.0,66353.0,0.151538]
[1727449222625,0.02783308,66354.0,66353.0,0.000829]
[1727449223300,0.02753761,66354.0,66353.0,0.000829]
[1727449223520,0.16141053,66354.0,66353.0,0.000829]
[1727449223746,0.16441053,66354.0,66353.0,0.000829]
[1727449223992,0.003,66354.0,66353.0,0.000829]
[1727449224213,0.1726886,66358.0,66353.0,0.000829]
[1727449224214,0.150702,66356.0,66353.0,0.000829]
[1727449224434,0.155706,66354.0,66353.0,0.000829]
[1727449224647,0.158706,66354.0,66353.0,0.000829]
[1727449224869,0.17053919,66354.0,66353.0,0.000829]
[1727449225329,0.17153919,66354.0,66353.0,0.000829]
[1727449225548,0.004,66354.0,66353.0,0.000829]
[1727449225772,0.154706,66354.0,66353.0,0.000829]
[1727449226001,0.17154914,66354.0,66353.0,0.000829]
[1727449227421,0.34423774,66354.0,66353.0,0.000829]
[1727449227974,0.37114113,66354.0,66353.0,0.000829]
[1727449228226,0.60522907,66354.0,66353.0,0.000829]
[1727449228456,0.94256571,66354.0,66353.0,0.000829]
[1727449228964,0.85942955,66354.0,66353.0,0.000829]
[1727449229263,0.95442955,66354.0,66353.0,0.000829]
[1727449229426,0.95142955,66354.0,66353.0,0.000829]
[1727449229649,0.002,66352.0,66347.0,0.000829]
[1727449229886,0.3234086,66348.0,66347.0,0.000829]
[1727449230102,0.58993658,66348.0,66347.0,0.000829]
[1727449230546,0.52244307,66348.0,66347.0,0.000829]
[1727449230771,0.58991311,66348.0,66347.0,0.000829]
[1727449231008,0.58991311,66348.0,66333.0,0.22590191]
[1727449231009,0.150745,66337.0,66333.0,0.22590191]
[1727449231224,0.52246807,66337.0,66333.0,0.22590191]
[1727449231442,0.52246807,66337.0,66332.0,0.000829]
[1727449231443,0.76718058,66337.0,66332.0,0.000829]
[1727449231652,0.58990856,66337.0,66332.0,0.000829]
[1727449232121,1.0286306,66337.0,66332.0,0.000829]
[1727449232340,1.08407414,66337.0,66336.0,0.001829]
[1727449232552,0.150772,66325.0,66324.0,0.000829]
[1727449232773,0.49545759,66325.0,66324.0,0.000829]
[1727449233225,0.52215087,66325.0,66324.0,0.000829]
[1727449233444,0.49545759,66325.0,66324.0,0.000829]
[1727449234101,0.53213945,66325.0,66324.0,0.000829]
[1727449234324,0.50545759,66325.0,66324.0,0.000829]
[1727449234852,0.54012034,66325.0,66324.0,0.000829]
[1727449235539,0.49674854,66325.0,66324.0,0.000829]
[1727449235757,0.51339239,66325.0,66324.0,0.000829]
[1727449235974,0.50339239,66325.0,66324.0,0.000829]
[1727449236193,0.54407227,66325.0,66324.0,0.000829]
[1727449236404,0.50339239,66325.0,66324.0,0.000829]
[1727449236848,0.50939239,66325.0,66324.0,0.000829]
[1727449237330,0.52339239,66325.0,66324.0,0.000829]
[1727449237567,0.19541585,66325.0,66324.0,0.000829]
[1727449237798,0.41444539,66337.0,66325.0,0.150772]
[1727449237799,0.150763,66329.0,66325.0,0.150772]
[1727449238034,0.150763,66329.0,66324.0,0.000829]
[1727449238035,0.164772,66325.0,66324.0,0.000829]
[1727449238277,0.014,66325.0,66324.0,0.000829]
[1727449238515,0.1726886,66330.0,66324.0,0.000829]
[1727449238758,0.3324606,66325.0,66324.0,0.000829]
[1727449238986,0.48774854,66325.0,66324.0,0.000829]
[1727449239226,0.51840432,66325.0,66324.0,0.000829]
[1727449239449,0.53105503,66325.0,66324.0,0.000829]
[1727449240212,0.155774,66324.0,66323.0,0.00044474]
[1727449240465,0.48936843,66324.0,66323.0,0.00044474]
[1727449240694,0.150799,66313.0,66312.0,0.0001]
[1727449240925,0.49543132,66313.0,66312.0,0.0001]
[1727449241423,0.49543132,66313.0,66312.0,0.0001]
[1727449241893,0.52201144,66313.0,66312.0,0.0001]
[1727449242130,0.52198784,66313.0,66312.0,0.0001]
[1727449242402,0.49543132,66313.0,66312.0,0.0001]
[1727449242648,0.52199853,66313.0,66312.0,0.0001]
[1727449242872,0.52799853,66313.0,66312.0,0.0001]
[1727449243561,0.53199853,66313.0,66312.0,0.0001]
[1727449244026,0.53183399,66313.0,66312.0,0.0001]
[1727449244257,0.17735994,66313.0,66312.0,0.0001]
[1727449244493,0.20385977,66313.0,66312.0,0.0001]
[1727449244690,0.35004854,66313.0,66312.0,0.0001]
[1727449244987,0.37661854,66313.0,66312.0,0.0001]
[1727449245456,0.53190648,66313.0,66312.0,0.0001]
[1727449247079,0.53202322,66313.0,66312.0,0.0001]
[1727449247582,0.150809,66309.0,66308.0,0.0131545]
[1727449248055,0.19405668,66309.0,66308.0,0.0131545]
[1727449249196,0.19605668,66309.0,66308.0,0.0131545]
[1727449250196,0.19705668,66309.0,66308.0,0.0131545]
[1727449250438,0.18042296,66309.0,66308.0,0.0131545]
[1727449250673,0.04613501,66309.0,66308.0,0.0131545]
[1727449250910,0.04613501,66309.0,66308.0,0.1639655]
[1727449251407,0.003,66309.0,66308.0,0.30086004]
[1727449251633,0.003,66309.0,66308.0,0.45614798]
[1727449251874,0.003,66309.0,66308.0,0.65144798]
[1727449252123,0.2506886,66335.0,66308.0,0.65144798]
[1727449252124,0.15075,66335.0,66326.0,0.15077]
[1727449252359,0.15075,66335.0,66325.0,0.079]
[1727449252360,0.150757,66332.0,66327.0,0.150766]
[1727449252627,0.1726886,66330.0,66317.0,0.0778]
[1727449252863,0.1726886,66322.0,66313.0,0.301599]
[1727449253091,0.1726886,66322.0,66310.0,0.0778]
[1727449253092,0.04274643,66321.0,66314.0,0.150797]
[1727449253317,0.34431443,66320.0,66313.0,0.150799]
[1727449253543,0.15079,66318.0,66310.0,0.38024]
[1727449253811,0.15079,66318.0,66313.0,0.150799]
[1727449254042,0.04292247,66317.0,66311.0,0.301607]
[1727449254303,0.04292247,66316.0,66310.0,0.07863]
[1727449254527,0.04292247,66315.0,66310.0,0.00083]
[1727449254749,0.301583,66317.0,66310.0,0.00083]
[1727449254750,0.150801,66313.0,66310.0,0.00083]
[1727449254978,0.04292247,66312.0,66310.0,0.00083]
[1727449255215,0.01650864,66311.0,66310.0,0.00083]
[1727449255448,0.16731264,66311.0,66310.0,0.00083]
[1727449255701,0.19376946,66311.0,66310.0,0.00083]
[1727449256183,0.19376946,66311.0,66310.0,0.00183]
[1727449256650,0.19476946,66311.0,66310.0,0.00383]
[1727449256867,0.19476946,66311.0,66310.0,0.00283]
[1727449257095,0.19376946,66311.0,66310.0,0.00083]
[1727449257320,0.19976946,66311.0,66310.0,0.00083]
[1727449258043,0.04896546,66311.0,66310.0,0.2552186]
[1727449258285,0.04896546,66311.0,66310.0,0.233336]
[1727449258998,0.04896546,66311.0,66310.0,0.151636]
[1727449259236,0.04333166,66311.0,66310.0,0.151636]
[1727449259472,0.04433166,66311.0,66310.0,0.152636]
[1727449260379,0.04533166,66311.0,66310.0,0.39908771]
[1727449260614,0.04533166,66311.0,66310.0,0.39607177]
[1727449260849,0.04533166,66311.0,66310.0,0.60517177]
[1727449261092,0.22590191,66326.0,66325.0,0.150772]
[1727449261327,0.22590191,66326.0,66321.0,0.1726886]
[1727449261328,0.22590191,66326.0,66320.0,0.301565]
[1727449261579,0.22590191,66326.0,66317.0,0.150789]
[1727449261580,0.150779,66322.0,66317.0,0.150789]
[1727449261816,0.22590191,66326.0,66316.0,0.301585]
[1727449261817,0.150784,66320.0,66316.0,0.150792]
[1727449262054,0.1726886,66329.0,66310.0,0.00183]
[1727449262055,0.1726886,66328.0,66310.0,0.00183]
[1727449262311,0.0813,66329.0,66310.0,0.00183]
[1727449262312,0.301572,66320.0,66310.0,0.00183]
[1727449262544,0.1508,66313.0,66310.0,0.00183]
[1727449262801,0.301582,66317.0,66310.0,0.00083]
[1727449263042,0.150794,66316.0,66311.0,0.150802]
[1727449263270,0.150804,66311.0,66310.0,0.00083]
[1727449263725,0.150804,66311.0,66310.0,0.00483]
[1727449263991,0.301596,66314.0,66310.0,0.00983]
[1727449264252,0.150795,66315.0,66310.0,0.156636]
[1727449264485,0.301583,66317.0,66313.0,0.150799]
[1727449264486,0.22590191,66316.0,66313.0,0.150799]
[1727449264724,0.22590191,66316.0,66310.0,0.00783]
[1727449264976,0.150804,66311.0,66310.0,0.00783]
[1727449265942,0.150804,66311.0,66310.0,0.00083]
[1727449266215,0.150804,66311.0,66310.0,0.00383]
[1727449266713,0.150804,66311.0,66310.0,0.00283]
[1727449266977,0.150804,66311.0,66310.0,0.00083]
[1727449267235,0.153804,66311.0,66310.0,0.00083]
[1727449267482,0.157804,66311.0,66310.0,0.00083]
[1727449267771,0.31309194,66311.0,66310.0,0.00083]
[1727449268072,0.31309194,66311.0,66308.0,0.0131545]
[1727449268073,0.3234976,66309.0,66308.0,0.0131545]
[1727449268267,0.47878554,66309.0,66308.0,0.0131545]
[1727449269556,0.48878554,66309.0,66308.0,0.0141545]
[1727449270098,0.55629222,66309.0,66308.0,0.0141545]
[1727449270379,0.49978554,66309.0,66308.0,0.0141545]
[1727449270643,0.83002224,66309.0,66308.0,0.0141545]
[1727449270893,0.83002224,66309.0,66286.0,0.000829]
[1727449270894,0.3235156,66301.0,66286.0,0.000829]
[1727449271172,0.57263402,66301.0,66287.0,0.150858]
[1727449271420,0.02628906,66301.0,66292.0,0.301694]
[1727449271693,0.17711606,66301.0,66292.0,0.301694]
[1727449271971,0.17711606,66301.0,66293.0,0.150844]
[1727449272235,0.17711606,66301.0,66291.0,0.150849]
[1727449272503,0.17711606,66301.0,66286.0,0.000829]
[1727449272770,0.17711606,66301.0,66290.0,0.150851]
[1727449273327,0.17711606,66301.0,66288.0,0.30171]
[1727449273328,0.19011606,66301.0,66288.0,0.30171]
[1727449273340,0.20667544,66301.0,66288.0,0.30171]
[1727449273580,0.25470253,66301.0,66290.0,0.3017]
[1727449273822,0.04784844,66301.0,66296.0,0.301677]
[1727449274069,0.05084844,66301.0,66299.0,0.150831]
[1727449274335,0.05084844,66301.0,66298.0,0.150834]
[1727449274822,0.05084844,66301.0,66298.0,0.301663]
[1727449275064,0.05084844,66301.0,66296.0,0.301677]
[1727449275065,0.20167544,66301.0,66297.0,0.150835]
[1727449275305,0.05084844,66301.0,66299.0,0.15083]
[1727449275559,0.05084844,66301.0,66287.0,0.0756]
[1727449275560,0.37436404,66301.0,66290.0,0.301702]
[1727449275795,0.37436404,66301.0,66291.0,0.150848]
[1727449275796,0.44204812,66301.0,66291.0,0.150848]
[1727449276038,0.44204812,66301.0,66287.0,0.0756]
[1727449276039,0.44204812,66301.0,66290.0,0.150851]
[1727449276285,0.44204812,66301.0,66286.0,0.183929]
[1727449276546,0.44201635,66301.0,66286.0,0.000829]
[1727449276782,0.44201635,66301.0,66287.0,0.301715]
[1727449276783,0.61561786,66301.0,66287.0,0.301715]
[1727449277018,0.44292926,66301.0,66290.0,0.301703]
[1727449277261,0.44292926,66301.0,66295.0,0.30168]
[1727449277262,0.11855497,66301.0,66295.0,0.30168]
[1727449277503,0.02446795,66301.0,66300.0,6.151779]
[1727449278010,0.02446795,66301.0,66300.0,6.30706694]
[1727449278258,0.008,66301.0,66300.0,6.30706694]
[1727449278511,0.005,66301.0,66300.0,6.30706694]
[1727449279055,0.003,66301.0,66300.0,6.63246694]
[1727449279297,0.00166,66311.0,66310.0,0.150806]
[1727449279538,0.00166,66311.0,66310.0,0.74696572]
[1727449279787,0.00166,66311.0,66310.0,0.86968254]
[1727449280254,0.00166,66311.0,66310.0,0.86768254]
[1727449280492,0.00266,66311.0,66310.0,0.86768254]
[1727449281256,0.00366,66311.0,66310.0,0.84668254]
[1727449281507,0.00366,66311.0,66310.0,0.67399394]
[1727449281744,0.00266,66311.0,66310.0,0.57399394]
[1727449281993,0.00366,66311.0,66310.0,0.002]
[1727449282473,0.00366,66311.0,66307.0,0.150813]
[1727449282474,0.00266,66311.0,66307.0,0.150813]
[1727449282714,0.150819,66305.0,66295.0,0.1]
[1727449282979,0.301625,66308.0,66297.0,0.301669]
[1727449283233,0.301636,66305.0,66299.0,0.15083]
[1727449283501,0.016197,66304.0,66300.0,6.247778]
[1727449283762,0.016197,66303.0,66300.0,6.09695]
[1727449284013,0.29361381,66309.0,66300.0,6.09695]
[1727449284014,0.001,66305.0,66301.0,0.301654]
[1727449284267,0.0162249,66304.0,66303.0,0.150821]
[1727449284748,0.0162249,66304.0,66300.0,6.09795]
[1727449285008,0.001,66305.0,66304.0,0.15082]
[1727449285251,0.002,66305.0,66304.0,0.15082]
[1727449285960,0.01726071,66305.0,66304.0,0.15082]
[1727449286204,0.01726071,66305.0,66302.0,0.150823]
[1727449286452,0.150813,66307.0,66302.0,0.150823]
[1727449286692,0.01625987,66306.0,66300.0,6.09695]
[1727449286929,0.001,66303.0,66302.0,0.150824]
[1727449287169,0.01625987,66303.0,66301.0,0.150826]
[1727449287405,0.001,66305.0,66303.0,0.150821]
[1727449287639,0.01626039,66304.0,66303.0,0.150821]
[1727449289088,0.01626039,66304.0,66300.0,6.09695]
[1727449289322,0.57266048,66309.0,66300.0,6.09695]
[1727449289323,0.01626039,66303.0,66300.0,6.09695]
[1727449289558,0.57266582,66309.0,66300.0,6.09695]
[1727449289796,0.01630375,66302.0,66300.0,6.247779]
[1727449290029,0.002,66304.0,66300.0,6.247779]
[1727449290274,0.01630385,66303.0,66300.0,6.247779]
[1727449290530,0.01630385,66303.0,66302.0,0.227525]
[1727449290759,0.22590191,66308.0,66302.0,0.227525]
[1727449290760,0.22590191,66308.0,66307.0,0.150813]
[1727449290998,0.24386231,66308.0,66307.0,0.150813]
[1727449291236,0.22756191,66308.0,66307.0,0.150813]
[1727449291473,0.00166,66308.0,66307.0,0.150813]
[1727449292206,0.01798957,66308.0,66307.0,0.150813]
[1727449292404,0.00166,66308.0,66307.0,0.150813]
[1727449292667,0.00166,66308.0,66307.0,0.15382895]
[1727449292900,0.00266,66308.0,66307.0,0.31011689]
[1727449293369,0.00366,66308.0,66307.0,0.31111689]
[1727449293622,0.00266,66308.0,66307.0,0.31011689]
[1727449293862,0.00166,66308.0,66307.0,0.30911689]
[1727449294097,0.00266,66308.0,66307.0,0.31011689]
[1727449294327,0.00266,66308.0,66307.0,0.14761689]
[1727449294555,0.00366,66308.0,66307.0,0.30244576]
[1727449295019,0.00466,66308.0,66307.0,0.30344576]
[1727449295491,0.00466,66308.0,66307.0,0.30244576]
[1727449295492,0.00366,66308.0,66307.0,0.30244576]
[1727449295742,0.00466,66308.0,66307.0,0.30344576]
[1727449296319,0.00466,66308.0,66307.0,0.002]
[1727449296490,0.02086475,66308.0,66307.0,0.002]
[1727449296700,0.17167575,66308.0,66307.0,0.002]
[1727449296909,0.02081765,66308.0,66307.0,0.002]
[1727449297924,0.17162865,66308.0,66307.0,0.002]
[1727449298339,0.02081765,66308.0,66307.0,0.002]
[1727449298982,0.02081765,66308.0,66307.0,0.152813]
[1727449299192,0.01993738,66308.0,66307.0,0.001]
[1727449299396,0.01993738,66308.0,66307.0,0.150813]
[1727449299600,0.01826638,66308.0,66307.0,0.150813]
[1727449299801,0.02126638,66308.0,66307.0,0.150813]
[1727449300010,0.01826638,66308.0,66307.0,0.150813]
[1727449300419,0.01826638,66308.0,66307.0,0.151813]
[1727449300620,0.01826638,66308.0,66307.0,0.150813]
[1727449301027,0.00166,66311.0,66310.0,0.150806]
[1727449301249,0.00166,66311.0,66310.0,0.66892594]
[1727449301482,0.00166,66311.0,66310.0,0.66591609]
[1727449302147,0.00166,66311.0,66310.0,0.72342453]
[1727449302785,0.00166,66311.0,66310.0,0.72242453]
[1727449303008,0.00266,66311.0,66310.0,0.72542453]
[1727449303222,0.00366,66311.0,66310.0,0.72942453]
[1727449303473,0.00266,66311.0,66310.0,0.74842453]
[1727449303734,0.00366,66311.0,66310.0,0.75042453]
[1727449303972,0.00266,66311.0,66310.0,0.68991609]
[1727449304417,0.00166,66311.0,66310.0,1.38891609]
[1727449304630,0.00266,66311.0,66310.0,1.38991609]
[1727449304854,0.00266,66311.0,66310.0,1.36691609]
[1727449305083,0.00166,66311.0,66310.0,0.7]
[1727449305530,0.00266,66311.0,66310.0,0.701]
[1727449305995,0.154464,66311.0,66310.0,0.705]
[1727449306257,0.301631,66307.0,66293.0,0.301689]
[1727449306488,0.150817,66306.0,66301.0,0.7]
[1727449306710,0.150821,66304.0,66301.0,0.7]
[1727449306933,0.303271,66311.0,66301.0,0.7]
[1727449306934,0.301622,66308.0,66301.0,0.7]
[1727449307156,0.301622,66308.0,66298.0,0.150833]
[1727449307157,0.150819,66305.0,66298.0,0.150833]
[1727449307346,0.301622,66308.0,66296.0,0.301676]
[1727449307589,0.150816,66306.0,66299.0,0.150831]
[1727449307820,0.150816,66306.0,66301.0,0.002]
[1727449307821,0.02597524,66305.0,66301.0,0.002]
[1727449308055,0.301622,66308.0,66301.0,0.002]
[1727449308289,0.00166,66311.0,66310.0,0.150806]
[1727449308522,0.00166,66311.0,66310.0,0.40910958]
[1727449308749,0.00166,66311.0,66310.0,0.250806]
[1727449308975,0.00166,66311.0,66310.0,0.150806]
[1727449309624,0.00166,66311.0,66310.0,0.850806]
[1727449309853,0.00266,66311.0,66310.0,0.850806]
[1727449310116,0.00266,66311.0,66310.0,0.7]
[1727449310371,0.153464,66311.0,66310.0,0.7]
[1727449310883,0.154464,66311.0,66310.0,0.702]
[1727449311663,0.154464,66311.0,66301.0,0.00034294]
[1727449311664,0.00266,66311.0,66301.0,0.00034294]
[1727449311666,0.150809,66309.0,66305.0,0.150816]
[1727449311903,0.150813,66307.0,66303.0,0.150822]
[1727449312157,0.150811,66309.0,66305.0,0.150817]
[1727449312395,0.01605877,66308.0,66305.0,0.150817]
[1727449312647,0.01605877,66307.0,66306.0,0.150814]
[1727449312945,0.00166,66311.0,66310.0,0.150806]
[1727449313187,0.01770652,66311.0,66310.0,0.150806]
[1727449314659,0.01773215,66311.0,66310.0,0.150806]
[1727449314899,0.01773215,66311.0,66310.0,0.152806]
[1727449315140,0.00166,66311.0,66310.0,0.152806]
[1727449315860,0.01774243,66311.0,66310.0,0.152806]
[1727449316109,0.01774792,66311.0,66310.0,0.153806]
[1727449316353,0.01774792,66311.0,66310.0,0.003]
[1727449316605,0.16855192,66311.0,66310.0,0.003]
[1727449318096,0.16854306,66311.0,66310.0,0.003]
[1727449318576,0.01773906,66311.0,66310.0,0.003]
[1727449319284,0.01773906,66311.0,66310.0,0.153806]
[1727449320199,0.01773906,66311.0,66310.0,0.30909394]
[1727449320200,0.00166,66311.0,66310.0,0.30909394]
[1727449320447,0.00166,66311.0,66310.0,0.48902711]
[1727449320675,0.00166,66311.0,66310.0,0.48659394]
[1727449320908,0.00166,66311.0,66310.0,0.48859394]
[1727449321143,0.00166,66311.0,66310.0,0.48459394]
[1727449321377,0.00266,66311.0,66310.0,0.48659394]
[1727449321841,0.00266,66311.0,66310.0,0.48859394]
[1727449322077,0.00166,66316.0,66315.0,0.180795]
[1727449322322,0.00166,66316.0,66315.0,2.29613809]
[1727449322553,0.00166,66316.0,66315.0,1.08216309]
[1727449323267,0.00166,66316.0,66315.0,2.23454309]
[1727449323493,0.00166,66316.0,66315.0,2.24454309]
[1727449323724,0.00266,66316.0,66315.0,2.25088602]
[1727449324191,0.00366,66316.0,66315.0,2.25788602]
[1727449324720,0.00266,66316.0,66315.0,1.94532802]
[1727449325178,0.00266,66316.0,66315.0,1.93732802]
[1727449325179,0.00366,66316.0,66315.0,1.93732802]
[1727449325429,0.00266,66316.0,66315.0,1.93632802]
[1727449325693,0.00366,66316.0,66315.0,1.94332802]
[1727449325921,0.00266,66316.0,66315.0,1.93832802]
[1727449326436,0.00266,66316.0,66315.0,0.94650587]
[1727449326679,0.00266,66316.0,66315.0,0.76380587]
[1727449326972,0.00366,66316.0,66315.0,0.76880587]
[1727449327205,0.00366,66316.0,66315.0,0.76880586]
[1727449327447,0.00266,66316.0,66315.0,0.60851792]
[1727449327947,0.00366,66316.0,66315.0,0.61351792]
[1727449328439,0.00166,66316.0,66315.0,0.45272292]
[1727449328667,0.00166,66316.0,66315.0,0.60351792]
[1727449328889,0.00266,66316.0,66315.0,0.60851792]
[1727449329606,0.00266,66316.0,66315.0,0.60351792]
[1727449329607,0.00166,66316.0,66315.0,0.60351792]
[1727449330068,0.00366,66316.0,66315.0,0.61151792]
[1727449330289,0.00366,66316.0,66315.0,0.45572292]
[1727449330290,0.153453,66316.0,66315.0,0.45572292]
[1727449330517,0.00166,66316.0,66315.0,0.45272292]
[1727449330772,0.00266,66316.0,66315.0,0.60651792]
[1727449331430,0.00166,66316.0,66315.0,0.60351792]
[1727449331661,0.00266,66316.0,66315.0,0.60851792]
[1727449332132,0.00166,66316.0,66315.0,0.75880586]
[1727449332349,0.00166,66316.0,66315.0,0.85980586]
[1727449332783,0.00266,66316.0,66315.0,1.56480586]
[1727449333041,0.00266,66316.0,66315.0,1.55980586]
[1727449333042,0.00166,66316.0,66315.0,1.55980586]
[1727449333276,0.00166,66316.0,66315.0,1.55880586]
[1727449333509,0.00366,66316.0,66315.0,1.56780586]
[1727449333986,0.00266,66316.0,66315.0,1.30851792]
[1727449334199,0.00266,66316.0,66315.0,0.60851792]
[1727449334489,0.00366,66316.0,66315.0,0.61251792]
[1727449334727,0.00366,66316.0,66315.0,0.76780586]
[1727449334939,0.00266,66316.0,66315.0,0.76280586]
[1727449335168,0.00166,66316.0,66315.0,0.75880586]
[1727449335394,0.00266,66316.0,66315.0,1.46380586]
[1727449335623,0.00266,66316.0,66315.0,1.56380586]
[1727449335849,0.00266,66316.0,66315.0,1.55880586]
[1727449335850,0.00166,66316.0,66315.0,1.55880586]
[1727449336087,0.00266,66316.0,66315.0,1.56380586]
[1727449336313,0.00166,66316.0,66315.0,1.67180586]
[1727449336529,0.00266,66316.0,66315.0,1.67580586]
[1727449336748,0.00366,66316.0,66315.0,1.68080585]
[1727449337028,0.00266,66316.0,66315.0,1.67680585]
[1727449337487,0.00266,66316.0,66315.0,1.68680585]
[1727449337717,0.00366,66316.0,66315.0,1.69080585]
[1727449337936,0.00366,66316.0,66315.0,1.68878685]
[1727449338154,0.00366,66316.0,66315.0,1.68478685]
[1727449338155,0.00266,66316.0,66315.0,1.68478685]
[1727449339066,0.00166,66316.0,66315.0,1.67978685]
[1727449339520,0.00366,66316.0,66315.0,1.68878685]
[1727449339739,0.00366,66316.0,66315.0,1.68378685]
[1727449339740,0.00266,66316.0,66315.0,1.68378685]
[1727449340020,0.00366,66316.0,66315.0,1.68878685]
[1727449340226,0.00266,66316.0,66315.0,1.67978685]
[1727449340459,0.00366,66316.0,66315.0,1.68378685]
[1727449340681,0.00466,66316.0,66315.0,1.68878685]
[1727449340931,0.00366,66316.0,66315.0,1.68478685]
[1727449341155,0.00366,66316.0,66315.0,1.68878685]
[1727449341156,0.00466,66316.0,66315.0,1.68878685]
[1727449342127,0.00466,66316.0,66315.0,1.68678685]
[1727449342359,0.00466,66316.0,66315.0,1.67678685]
[1727449342584,0.00266,66316.0,66315.0,1.59878685]
[1727449342817,0.03356191,66326.0,66325.0,0.250772]
[1727449343040,0.03356191,66326.0,66325.0,1.10640285]
[1727449343271,0.08366,66330.0,66329.0,0.150763]
[1727449343500,0.08366,66330.0,66329.0,0.00034291]
[1727449343741,0.234421,66330.0,66329.0,0.00034291]
[1727449343974,0.09494704,66330.0,66329.0,0.15110591]
[1727449344427,0.07866,66330.0,66329.0,0.00034291]
[1727449344687,0.06488934,66330.0,66329.0,0.15110591]
[1727449344916,0.22590191,66336.0,66329.0,1.11846825]
[1727449345145,0.22590191,66336.0,66335.0,0.150749]
[1727449345371,0.24214014,66336.0,66335.0,0.15109191]
[1727449345602,0.150739,66340.0,66335.0,0.00034291]
[1727449345603,0.22590191,66340.0,66335.0,0.00034291]
[1727449345831,0.01623936,66339.0,66337.0,0.30149]
[1727449346059,0.30145,66346.0,66337.0,0.00034291]
[1727449346060,0.22590191,66342.0,66337.0,0.00034291]
[1727449346313,0.01623925,66341.0,66339.0,0.15074]
[1727449346535,0.01623925,66340.0,66339.0,0.15108291]
[1727449346991,0.16697725,66340.0,66339.0,0.00034291]
[1727449347483,0.1705766,66340.0,66339.0,0.00034291]
[1727449347709,0.27430747,66340.0,66339.0,0.00234291]
[1727449347964,0.23203735,66340.0,66339.0,0.00234291]
[1727449348203,0.53413078,66340.0,66339.0,0.00634291]
[1727449348440,0.53053143,66340.0,66339.0,0.00634291]
[1727449349131,0.27070928,66340.0,66339.0,0.00634291]
[1727449349595,0.27070928,66340.0,66339.0,0.00234291]
[1727449349897,0.04227128,66340.0,66339.0,0.00234291]
[1727449350117,0.20100928,66340.0,66339.0,0.00234291]
[1727449350361,0.20100928,66340.0,66339.0,0.00034291]
[1727449350588,0.19300928,66340.0,66339.0,0.00034291]
[1727449350816,0.20600928,66340.0,66339.0,0.00034291]
[1727449351061,0.53943078,66340.0,66339.0,0.00034291]
[1727449351283,0.93018146,66340.0,66339.0,0.00034291]
[1727449351553,0.95437051,66340.0,66339.0,0.00034291]
[1727449352009,1.12925248,66340.0,66339.0,0.00034291]
[1727449352237,1.10323938,66340.0,66339.0,0.00034291]
[1727449352482,1.10523938,66340.0,66339.0,0.00034291]
[1727449352710,1.19537614,66340.0,66339.0,0.00034291]
[1727449352940,0.150761,66330.0,66329.0,0.45431]
[1727449353168,0.17061853,66330.0,66329.0,0.45431]
[1727449353402,0.16701918,66330.0,66329.0,0.45431]
[1727449353633,0.01625818,66330.0,66329.0,0.605073]
[1727449353865,0.01625818,66330.0,66329.0,0.45431]
[1727449354339,0.01625818,66330.0,66329.0,0.607073]
[1727449355736,0.01625818,66330.0,66329.0,0.45631]
[1727449356479,0.16682709,66330.0,66329.0,0.45631]
[1727449356713,0.01606609,66330.0,66329.0,0.45631]
[1727449356944,0.0158846,66330.0,66329.0,0.45631]
[1727449357460,0.0158846,66330.0,66329.0,0.61159794]
[1727449357670,0.001658,66340.0,66339.0,0.15074]
[1727449357927,0.001658,66340.0,66339.0,1.02009009]
[1727449358166,0.001658,66340.0,66339.0,0.76026794]
[1727449358429,0.001658,66340.0,66339.0,0.75026794]
[1727449359143,0.001658,66340.0,66339.0,0.75226794]
[1727449359366,0.001658,66340.0,66339.0,0.75026794]
[1727449359596,0.003658,66340.0,66339.0,0.75826794]
[1727449359823,0.003658,66340.0,66339.0,1.45826794]
[1727449360085,0.001658,66340.0,66339.0,1.45026794]
[1727449360337,0.002658,66340.0,66339.0,1.45526794]
[1727449360570,0.003658,66340.0,66339.0,1.45826794]
[1727449361287,0.003658,66340.0,66339.0,0.75826794]
[1727449362994,0.003658,66340.0,66339.0,1.45826794]
[1727449363236,0.003658,66340.0,66339.0,2.10809009]
[1727449363465,0.003658,66340.0,66339.0,2.61781409]
[1727449363931,0.003658,66340.0,66339.0,2.61581409]
[1727449364163,0.003658,66340.0,66339.0,2.31344409]
[1727449364408,0.003658,66340.0,66339.0,2.29044409]
[1727449364634,0.003658,66340.0,66339.0,1.63939594]
[1727449364886,0.002658,66340.0,66339.0,1.160068]
[1727449365122,0.001658,66340.0,66339.0,1.46109594]
[1727449365357,0.002658,66340.0,66339.0,1.47009594]
[1727449365588,0.003658,66340.0,66339.0,1.47809594]
[1727449365824,0.002658,66340.0,66339.0,1.46909594]